{"text_format":"1","workbook":"xlsx","n_sheets":3,"sheets":["1","2","3"],"not_rendered":{"charts":0,"images":0,"macros":1,"external_links":0,"defined_names":3,"comments":0,"pivot_tables":0},"unopened":[],"bounds":{"document_bytes":16777216,"sheet_cells":100000,"rows_first":2000,"rows_last":500,"rows_between":2000,"halvings":0,"cell_chars":16384,"cell_head_chars":4096},"cells_cut":0,"cells_raw":0,"read":"whole","date_system":"1900"}

{"sheet":"1","index":0,"n_rows":40,"n_cols":12,"rows_kept":40,"cut":false,"hidden":false,"merged":[]}
[]
[null,"Date de mise à jour:","2022-05-20T14:52:30"]
[null,null,null,null,null,null,null,null,null,null,null,"ok"]
[null,"CHEMISES","37/38","39/40","41 /42","43/44","45/46"]
[null,"A1",null,null,"X"]
[null,"A2",null,null,null,null,"X"]
[null,"A3",null,null,null,"X"]
[null,"A4",null,null,null,null,"X"]
[null,"A5",null,null,"X"]
[null,"A6",null,null,null,null,"X"]
[null,"A7"]
[null,"A8","X"]
[null,"A9",null,null,null,"X"]
[null,"A10",null,null,null,null,"X"]
[null,"A11",null,null,"X"]
[null,"A12",null,null,null,"X"]
[null,"A13","X"]
[null,"A14"]
[null,"A15",null,null,"X"]
[null,"A16",null,null,"X"]
[null,"A17","X"]
[null,"A18",null,null,"X"]
[null,"A19"]
[null,"A20",null,null,null,"X"]
[null,"A21",null,null,null,"X"]
[null,"A22",null,null,"X"]
[null,"A23",null,null,null,"X"]
[null,"A24",null,null,"X"]
[null,"A25",null,null,"X"]
[null,"A26"]
[null,"A27",null,null,"X"]
[null,"A28",null,null,"X"]
[null,"A29",null,null,null,"X"]
[null,"A30",null,null,"X"]
[null,"A31",null,"X"]
[null,"A32",null,"X"]
[null,"A33",null,null,null,"X"]
[null,"A34","X"]
[null,"A35",null,null,"X"]
[null,"Nombre",{"$f":"COUNTIF(C5:C39,\"X\")","v":4},{"$f":"COUNTIF(D5:D39,\"X\")","v":2},13,8,4,0,0,{"$f":"SUM(C40:I40)","v":31}]

{"sheet":"2","index":1,"n_rows":40,"n_cols":9,"rows_kept":40,"cut":false,"hidden":false,"merged":[]}
[]
[null,"Date de mise à jour:","2022-05-19T17:22:41"]
[]
[null,"BLOUSONS","S","M","L","1 XL","2 XL","3 XL","4 XL"]
[null,"A1",null,null,null,"X"]
[null,"A2",null,null,null,"X"]
[null,"A3",null,null,null,null,"X"]
[null,"A4",null,null,null,"X"]
[null,"A5",null,null,null,"X"]
[null,"A6",null,null,null,null,null,"X"]
[null,"A7"]
[null,"A8","X"]
[null,"A9",null,null,null,null,"X"]
[null,"A10",null,null,null,null,"X"]
[null,"A11",null,null,"X"]
[null,"A12",null,null,null,null,"X"]
[null,"A13",null,"X"]
[null,"A14"]
[null,"A15",null,null,"X"]
[null,"A16",null,null,"X"]
[null,"A17",null,"X"]
[null,"A18",null,null,null,"X"]
[null,"A19"]
[null,"A20",null,null,null,"X"]
[null,"A21",null,null,null,null,"X"]
[null,"A22",null,null,null,null,"X"]
[null,"A23",null,null,null,null,"X"]
[null,"A24",null,null,null,"X"]
[null,"A25",null,null,"X"]
[null,"A26"]
[null,"A27",null,null,null,"X"]
[null,"A28",null,null,null,"X"]
[null,"A29",null,null,null,null,"X"]
[null,"A30",null,null,"X"]
[null,"A31",null,null,"X"]
[null,"A32",null,null,"X"]
[null,"A33",null,null,null,null,"X"]
[null,"A34",null,"X"]
[null,"A35",null,null,"X"]
[null,"Nombre",{"$f":"COUNTIF(C5:C39,\"X\")","v":1},{"$f":"COUNTIF(D5:D39,\"X\")","v":3},8,9,9,1,0]

{"sheet":"3","index":2,"n_rows":40,"n_cols":9,"rows_kept":40,"cut":false,"hidden":false,"merged":[]}
[]
[null,"Date de mise à jour:","2022-05-19T12:11:02"]
[]
[null,"SWEATS","S","M","L","1 XL","2 XL","3 XL","4 XL"]
[null,"A1",null,null,null,"X"]
[null,"A2",null,null,null,"X"]
[null,"A3",null,null,null,null,"X"]
[null,"A4",null,null,null,"X"]
[null,"A5",null,null,null,"X"]
[null,"A6",null,null,null,null,null,"X"]
[null,"A7"]
[null,"A8","X"]
[null,"A9",null,null,null,null,"X"]
[null,"A10",null,null,null,null,"X"]
[null,"A11",null,null,"X"]
[null,"A12",null,null,null,"X"]
[null,"A13",null,"X"]
[null,"A14"]
[null,"A15",null,null,"X"]
[null,"A16",null,null,"X"]
[null,"A17",null,"X"]
[null,"A18",null,null,null,"X"]
[null,"A19"]
[null,"A20",null,null,null,"X"]
[null,"A21",null,null,null,null,"X"]
[null,"A22",null,null,null,null,"X"]
[null,"A23",null,null,null,"X"]
[null,"A24",null,null,null,"X"]
[null,"A25",null,null,"X"]
[null,"A26"]
[null,"A27",null,null,null,"X"]
[null,"A28",null,null,null,"X"]
[null,"A29",null,null,null,null,"X"]
[null,"A30",null,null,"X"]
[null,"A31",null,null,"X"]
[null,"A32",null,null,"X"]
[null,"A33",null,null,null,null,"X"]
[null,"A34",null,"X"]
[null,"A35",null,null,"X"]
[null,"Nombre",{"$f":"COUNTIF(C5:C39,\"X\")","v":1},{"$f":"COUNTIF(D5:D39,\"X\")","v":3},8,11,7,1,0]